lending/lending_fUSD_20250808
["ID","MTS","AMOUNT","RATE_DAILY","PERIOD"]
[377923414,1754613214421,-1153.34,0.00024383,2]
[377923415,1754613214431,-1177.75,0.00024383,2]
[377923416,1754613214450,-560.12,0.00024383,2]
[377923417,1754613214466,-819.45,0.00024383,2]
[377923418,1754613214476,-472.38,0.00024383,2]
[377923419,1754613214486,-549.94,0.00024383,2]
[377923420,1754613214496,-895.98,0.00024383,2]
[377923421,1754613214507,-804.91,0.00024383,2]
[377923422,1754613214527,-638.56,0.00024383,2]
[377923423,1754613214538,-1258.89,0.00024383,2]
[377923424,1754613214548,-593.81,0.00024383,2]
[377923425,1754613214557,-622.14,0.00024383,2]
[377923426,1754613214567,-352.152162,0.00024383,2]
[377923427,1754613214577,-1287.29,0.00024383,2]
[377923428,1754613214587,-1105.48,0.00024383,2]
[377923429,1754613214597,-352.152162,0.00024383,2]
[377923430,1754613214607,-1707.57,0.00024383,2]
[377923431,1754613214617,-1515.17,0.00024383,2]
[377923432,1754613214627,-1621.03,0.00024383,2]
[377923433,1754613214638,-400.0,0.00024383,2]
[377923434,1754613214648,-1063.27,0.00024383,2]
[377923435,1754613214657,-420.834801,0.00024383,2]
[377923436,1754613214667,-420.834801,0.00024383,2]
[377923437,1754613214677,-1622.23,0.00024383,2]
[377923438,1754613214689,-400.0,0.00024383,2]
[377923439,1754613214699,-1480.91,0.00024383,2]
[377923440,1754613214709,-577.01,0.00024383,2]
[377923441,1754613214718,-400.0,0.00024383,2]
[377923442,1754613214727,-400.0,0.00024383,2]
[377923443,1754613214736,-877.01,0.00024383,2]
[377923444,1754613214745,-981.54,0.00024383,2]
[377923445,1754613214754,-1390.26,0.00024383,2]
[377923446,1754613214763,-1040.41,0.00024383,2]
[377923447,1754613214772,-447.12,0.00024383,2]
[377923448,1754613214781,-1312.79,0.00024383,2]
[377923449,1754613214791,-246.791616,0.00024383,2]
[377923450,1754613214801,-1460.09,0.00024383,2]
[377923451,1754613214812,-446.5,0.00024383,2]
[377923452,1754613214822,-246.791616,0.00024383,2]
[377923453,1754613214832,-783.24,0.00024383,2]
[377923454,1754613214843,-680.12,0.00024383,2]
[377923455,1754613214853,-400.0,0.00024383,2]
[377923456,1754613214863,-806.42,0.00024383,2]
[377923457,1754613214874,-998.91,0.00024383,2]
[377923458,1754613214883,-633.1,0.00024383,2]
[377923459,1754613214897,-400.0,0.00024383,2]
[377923460,1754613214907,-803.71,0.00024383,2]
[377923461,1754613214918,-408.97,0.00024383,2]
[377923462,1754613214928,-436.39,0.00024383,2]
[377923463,1754613214941,-1211.14,0.00024383,2]
[377923464,1754613214952,-832.28,0.00024383,2]
[377923465,1754613214963,-634.61,0.00024383,2]
[377923466,1754613214972,-1042.43,0.00024383,2]
[377923467,1754613214983,-411.96,0.00024383,2]
[377923468,1754613214993,-707.32,0.00024383,2]
[377923469,1754613215004,-455.66,0.00024383,2]
[377923470,1754613215014,-854.23,0.00024383,2]
[377923471,1754613215024,-9366.87,0.00024383,2]
[377923472,1754613215034,-484.41,0.00024383,2]
[377923473,1754613215044,-801.68,0.00024383,2]
[377923474,1754613215054,-1513.02,0.00024383,2]
[377923475,1754613215067,-447.08,0.00024383,2]
[377923476,1754613215077,-400.0,0.00024383,2]
[377923477,1754613215087,-156.45307622,0.00024383,2]
[377923478,1754613215097,-1785.26,0.00024383,2]
[377923479,1754613215107,-1103.08,0.00024383,2]
[377923480,1754613215117,-1209.1,0.00024383,2]
[377923481,1754613215128,-512.05,0.00024383,2]
[377923482,1754613215138,-837.98,0.00024383,2]
[377923483,1754613215148,-588.83,0.00024383,2]
[377923484,1754613215158,-1338.39,0.00024383,2]
[377923485,1754613215168,-1005.96,0.00024383,2]
[377923486,1754613215177,-1973.33,0.00024383,2]
[377923487,1754613215189,-467.43,0.00024383,2]
[377923488,1754613215198,-969.26,0.00024383,2]
[377923489,1754613215208,-1304.83,0.00024383,2]
[377923490,1754613215217,-602.9,0.00024383,2]
[377923491,1754613215227,-2027.86,0.00024383,2]
[377923492,1754613215237,-688.65,0.00024383,2]
[377923493,1754613215247,-1312.78,0.00024383,2]
[377923494,1754613215256,-703.47,0.00024383,2]
[377923495,1754613215267,-2100.2,0.00024383,2]
[377923496,1754613215277,-1134.28,0.00024383,2]
[377923497,1754613215286,-1383.67,0.00024383,2]
[377923498,1754613215295,-1569.86,0.00024383,2]
[377923499,1754613215305,-529.24,0.00024383,2]
[377923500,1754613215314,-812.54,0.00024383,2]
[377923501,1754613215324,-871.51,0.00024383,2]
[377923502,1754613215333,-801.5,0.00024383,2]
[377923503,1754613215343,-603.98,0.00024383,2]
[377923504,1754613215353,-755.43,0.00024383,2]
[377923505,1754613215362,-1094.56,0.00024383,2]
[377923506,1754613215371,-1864.15,0.00024383,2]
[377923507,1754613215380,-744.46,0.00024383,2]
[377923508,1754613215390,-1856.19,0.00024383,2]
[377923509,1754613215399,-574.05,0.00024383,2]
[377923510,1754613215408,-2819.61,0.00024383,2]
[377923511,1754613215418,-400.0,0.00024383,2]
[377923512,1754613215428,-963.74,0.00024383,2]
[377923513,1754613215438,-641.78,0.00024383,2]
[377923514,1754613215447,-421.69,0.00024383,2]
[377923515,1754613215456,-711.52,0.00024383,2]
[377923516,1754613215466,-400.0,0.00024383,2]
[377923517,1754613215476,-1482.22,0.00024383,2]
[377923518,1754613215486,-1692.64,0.00024383,2]
[377923519,1754613215495,-400.0,0.00024383,2]
[377923520,1754613215505,-1130.98,0.00024383,2]
[377923521,1754613215515,-561.73,0.00024383,2]
[377923522,1754613215525,-400.0,0.00024383,2]
[377923523,1754613215535,-9960.13,0.00024383,2]
[377923524,1754613215545,-500.34,0.00024383,2]
[377923525,1754613215554,-606.66,0.00024383,2]
[377923526,1754613215564,-546.64,0.00024383,2]
[377923527,1754613215574,-1592.3,0.00024383,2]
[377923528,1754613215583,-400.0,0.00024383,2]
[377923529,1754613215592,-1471.57,0.00024383,2]
[377923530,1754613215602,-2507.14,0.00024383,2]
[377923531,1754613215611,-1316.78,0.00024383,2]
[377923532,1754613215620,-1758.45,0.00024383,2]
[377923533,1754613215630,-1144.53,0.00024383,2]
[377923534,1754613215640,-1450.07,0.00024383,2]
[377923535,1754613215649,-567.89,0.00024383,2]
[377923536,1754613215659,-1555.78,0.00024383,2]
[377923537,1754613215669,-416.35,0.00024383,2]
[377923538,1754613215679,-973.9,0.00024383,2]
[377923539,1754613215690,-1577.14,0.00024383,2]
[377923540,1754613215700,-2230.25,0.00024383,2]
[377923541,1754613215710,-1658.19,0.00024383,2]
[377923542,1754613215722,-1949.39,0.00024383,2]
[377923543,1754613215740,-544.97,0.00024383,2]
[377923544,1754613215750,-400.0,0.00024383,2]
[377923545,1754613215761,-2189.36,0.00024383,2]
[377923546,1754613215771,-1736.77,0.00024383,2]
[377923547,1754613215781,-1506.04,0.00024383,2]
[377923548,1754613215791,-1668.74,0.00024383,2]
[377923549,1754613215801,-723.41,0.00024383,2]
[377923550,1754613215811,-1222.43,0.00024383,2]
[377923551,1754613215820,-527.26,0.00024383,2]
[377923552,1754613215830,-1196.36,0.00024383,2]
[377923553,1754613215840,-2004.13,0.00024383,2]
[377923554,1754613215850,-444.47,0.00024383,2]
[377923555,1754613215860,-554.57,0.00024383,2]
[377923556,1754613215869,-1393.06,0.00024383,2]
[377923557,1754613215880,-1109.06,0.00024383,2]
[377923558,1754613215891,-624.86,0.00024383,2]
[377923559,1754613215903,-1290.07,0.00024383,2]
[377923560,1754613215913,-469.16,0.00024383,2]
[377923561,1754613215923,-2031.25,0.00024383,2]
[377923562,1754613215934,-1460.91,0.00024383,2]
[377923563,1754613215949,-2043.58,0.00024383,2]
[377923564,1754613215959,-1164.41,0.00024383,2]
[377923565,1754613215969,-2666.29,0.00024383,2]
[377923566,1754613215980,-2592.74,0.00024383,2]
[377923567,1754613216001,-1333.93,0.00024383,2]
[377923568,1754613216011,-694.8,0.00024383,2]
[377923569,1754613216021,-750.53,0.00024383,2]
[377923570,1754613216031,-631.92,0.00024383,2]
[377923571,1754613216041,-1164.69,0.00024383,2]
[377923572,1754613216051,-2811.47,0.00024383,2]
[377923573,1754613216060,-518.35,0.00024383,2]
[377923574,1754613216070,-465.25,0.00024383,2]
[377923575,1754613216079,-543.99,0.00024383,2]
[377923576,1754613216089,-1133.55,0.00024383,2]
[377923577,1754613216098,-1818.01,0.00024383,2]
[377923578,1754613216108,-1288.12,0.00024383,2]
[377923579,1754613216117,-4407.12,0.00024383,2]
[377923580,1754613216126,-1275.65,0.00024383,2]
[377923581,1754613216136,-961.95,0.00024383,2]
[377923582,1754613216145,-680.98,0.00024383,2]
[377923583,1754613216154,-453.21,0.00024383,2]
[377923584,1754613216163,-400.0,0.00024383,2]
[377923585,1754613216173,-1714.38,0.00024383,2]
[377923586,1754613216182,-879.97,0.00024383,2]
[377923587,1754613216194,-253.69182166,0.00024383,2]
[377923588,1754613216204,-1117.23,0.00024383,2]
[377923589,1754613216213,-1989.79,0.00024383,2]
[377923590,1754613216223,-1604.94,0.00024383,2]
[377923591,1754613216232,-633.58,0.00024383,2]
[377923592,1754613216241,-1105.6,0.00024383,2]
[377923593,1754613216251,-1383.67,0.00024383,2]
[377923594,1754613216260,-426.59,0.00024383,2]
[377923595,1754613216270,-446.1,0.00024383,2]
[377923596,1754613216279,-1061.62,0.00024383,2]
[377923597,1754613216289,-2286.48,0.00024383,2]
[377923598,1754613216299,-1419.58,0.00024383,2]
[377923599,1754613216308,-608.07,0.00024383,2]
[377923600,1754613216317,-1349.34,0.00024383,2]
[377923601,1754613216327,-1214.9,0.00024383,2]
[377923602,1754613216337,-994.63,0.00024383,2]
[377923603,1754613216346,-2503.56,0.00024383,2]
[377923604,1754613216355,-668.68,0.00024383,2]
[377923605,1754613216365,-2034.76,0.00024383,2]
[377923606,1754613216375,-578.7,0.00024383,2]
[377923607,1754613216385,-1646.26,0.00024383,2]
[377923608,1754613216394,-1889.62,0.00024383,2]
[377923609,1754613216404,-1276.94,0.00024383,2]
[377923610,1754613216413,-400.0,0.00024383,2]
[377923611,1754613216423,-1501.0,0.00024383,2]
[377923612,1754613216432,-1528.92,0.00024383,2]
[377923613,1754613216443,-1025.64,0.00024383,2]
[377923614,1754613216453,-2128.65,0.00024383,2]
[377923615,1754613216466,-547.41,0.00024383,2]
[377923616,1754613216596,-1086.24,0.00024383,2]
[377923617,1754613216606,-400.0,0.00024383,2]
[377923618,1754613216616,-607.0,0.00024383,2]
[377923619,1754613216625,-1492.79,0.00024383,2]
[377923620,1754613216636,-1345.75,0.00024383,2]
[377923621,1754613216646,-1120.37,0.00024383,2]
[377923622,1754613216656,-420.32,0.00024383,2]
[377923623,1754613216666,-489.48,0.00024383,2]
[377923624,1754613216676,-1434.86,0.00024383,2]
[377923625,1754613216685,-1951.53,0.00024383,2]
[377923626,1754613216696,-2325.69,0.00024383,2]
[377923627,1754613216706,-1065.9,0.00024383,2]
[377923628,1754613216715,-465.31946071,0.00024383,2]
[377923629,1754613216725,-1376.02,0.00024383,2]
[377923630,1754613216734,-1151.09,0.00024383,2]
[377923631,1754613216744,-917.26,0.00024383,2]
[377923632,1754613216754,-400.0,0.00024383,2]
[377923633,1754613216763,-1350.78,0.00024383,2]
[377923634,1754613216773,-1848.96,0.00024383,2]
[377923635,1754613216782,-1409.09,0.00024383,2]
[377923636,1754613216791,-1657.63,0.00024383,2]
[377923637,1754613216801,-451.49,0.00024383,2]
[377923638,1754613216811,-2074.91,0.00024383,2]
[377923639,1754613216820,-608.66,0.00024383,2]
[377923640,1754613216829,-2222.15,0.00024383,2]
[377923641,1754613216839,-1588.59,0.00024383,2]
[377923642,1754613216849,-1826.78,0.00024383,2]
[377923643,1754613216858,-880.06,0.00024383,2]
[377923644,1754613216868,-1481.84,0.00024383,2]
[377923645,1754613216879,-1400.02,0.00024383,2]
[377923646,1754613216889,-1119.1,0.00024383,2]
[377923647,1754613216901,-1688.74,0.00024383,2]
[377923648,1754613216911,-2547.87,0.00024383,2]
[377923649,1754613216922,-1345.58,0.00024383,2]
[377923650,1754613216931,-1888.11,0.00024383,2]
[377923651,1754613216943,-1803.23,0.00024383,2]
[377923652,1754613216953,-3068.61,0.00024383,2]
[377923653,1754613216962,-846.92,0.00024383,2]
[377923654,1754613216975,-3553.23,0.00024383,2]
[377923655,1754613216985,-1278.15,0.00024383,2]
[377923656,1754613216994,-2016.9,0.00024383,2]
[377923657,1754613217004,-2027.95,0.00024383,2]
[377923658,1754613217013,-1218.73,0.00024383,2]
[377923659,1754613217023,-1857.98,0.00024383,2]
[377923660,1754613217033,-1934.76,0.00024383,2]
[377923661,1754613217042,-633.24,0.00024383,2]
[377923662,1754613217052,-2106.04,0.00024383,2]
[377923663,1754613217063,-1410.86,0.00024383,2]
[377923664,1754613217072,-881.02,0.00024383,2]
[377923665,1754613217081,-1461.11,0.00024383,2]
[377923666,1754613217090,-2341.65,0.00024383,2]
[377923667,1754613217099,-400.0,0.00024383,2]
[377923668,1754613217109,-1720.55,0.00024383,2]
[377923669,1754613217119,-400.0,0.00024383,2]
[377923670,1754613217128,-1452.03,0.00024383,2]
[377923671,1754613217138,-1620.97,0.00024383,2]
[377923672,1754613217147,-496.68,0.00024383,2]
[377923673,1754613217157,-634.15,0.00024383,2]
[377923674,1754613217166,-558.88,0.00024383,2]
[377923675,1754613217176,-2144.18,0.00024383,2]
[377923676,1754613217186,-1617.17,0.00024383,2]
[377923677,1754613217196,-2615.62,0.00024383,2]
[377923678,1754613217205,-2107.78,0.00024383,2]
[377923679,1754613217215,-749.36,0.00024383,2]
[377923680,1754613217225,-1657.01,0.00024383,2]
[377923681,1754613217234,-1646.42,0.00024383,2]
[377923682,1754613217244,-1193.46,0.00024383,2]
[377923683,1754613217253,-400.0,0.00024383,2]
[377923684,1754613217263,-2388.63,0.00024383,2]
[377923685,1754613217272,-1288.88,0.00024383,2]
[377923686,1754613217281,-2311.16,0.00024383,2]
[377923687,1754613217290,-1822.62,0.00024383,2]
[377923688,1754613217300,-2350.74,0.00024383,2]
[377923689,1754613217309,-612.27,0.00024383,2]
[377923690,1754613217319,-1810.11,0.00024383,2]
[377923691,1754613217328,-1537.46,0.00024383,2]
[377923692,1754613217338,-1369.16,0.00024383,2]
[377923693,1754613217347,-511.54,0.00024383,2]
[377923694,1754613217357,-482.95,0.00024383,2]
[377923695,1754613217366,-2136.59,0.00024383,2]
[377923696,1754613217376,-400.0,0.00024383,2]
[377923697,1754613217385,-1248.2,0.00024383,2]
[377923698,1754613217395,-1205.01,0.00024383,2]
[377923699,1754613217405,-483.64,0.00024383,2]
[377923700,1754613217415,-1594.51,0.00024383,2]
[377923701,1754613217425,-1678.28,0.00024383,2]
[377923702,1754613217435,-893.25,0.00024383,2]
[377923703,1754613217446,-845.84,0.00024383,2]
[377923704,1754613217456,-5670.63,0.00024383,2]
[377923705,1754613217465,-1256.8,0.00024383,2]
[377923706,1754613217475,-2578.27,0.00024383,2]
[377923707,1754613217485,-1440.32,0.00024383,2]
[377923708,1754613217496,-663.05,0.00024383,2]
[377923709,1754613217506,-738.95,0.00024383,2]
[377923710,1754613217516,-575.03,0.00024383,2]
[377923711,1754613217525,-2047.45,0.00024383,2]
[377923712,1754613217535,-2097.6,0.00024383,2]
[377923713,1754613217545,-500.07,0.00024383,2]
[377923714,1754613217559,-1244.17,0.00024383,2]
[377923715,1754613217569,-422.96,0.00024383,2]
[377923716,1754613217579,-759.15,0.00024383,2]
[377923717,1754613217588,-1757.73,0.00024383,2]
[377923718,1754613217599,-1316.97,0.00024383,2]
[377923719,1754613217609,-1321.01,0.00024383,2]
[377923720,1754613217620,-454.26,0.00024383,2]
[377923721,1754613217629,-3377.08,0.00024383,2]
[377923722,1754613217640,-1895.55,0.00024383,2]
[377923723,1754613217649,-1208.59,0.00024383,2]
[377923724,1754613217660,-1065.6,0.00024383,2]
[377923725,1754613217671,-2465.13,0.00024383,2]
[377923726,1754613217681,-671.01,0.00024383,2]
[377923727,1754613217690,-2359.49,0.00024383,2]
[377923728,1754613217700,-930.4,0.00024383,2]
[377923729,1754613217709,-916.62,0.00024383,2]
[377923730,1754613217720,-1206.78,0.00024383,2]
[377923731,1754613217731,-1926.69,0.00024383,2]
[377923732,1754613217741,-1712.73,0.00024383,2]
[377923733,1754613217751,-831.18,0.00024383,2]
[377923734,1754613217761,-1982.51,0.00024383,2]
[377923735,1754613217770,-458.34,0.00024383,2]
[377923736,1754613217780,-1225.08,0.00024383,2]
[377923737,1754613217789,-1138.89,0.00024383,2]
[377923738,1754613217799,-1259.99,0.00024383,2]
[377923739,1754613217809,-2026.14,0.00024383,2]
[377923740,1754613217818,-821.3,0.00024383,2]
[377923741,1754613217827,-785.6,0.00024383,2]
[377923742,1754613217837,-1205.32,0.00024383,2]
[377923743,1754613217846,-517.59,0.00024383,2]
[377923744,1754613217856,-720.69,0.00024383,2]
[377923745,1754613217865,-1444.0,0.00024383,2]
[377923746,1754613217876,-1835.44,0.00024383,2]
[377923747,1754613217887,-2627.0,0.00024383,2]
[377923748,1754613217896,-1785.88,0.00024383,2]
[377923749,1754613217906,-1057.29,0.00024383,2]
[377923750,1754613217915,-594.32,0.00024383,2]
[377923751,1754613217926,-737.52,0.00024383,2]
[377923752,1754613217936,-760.17,0.00024383,2]
[377923753,1754613217947,-1256.19,0.00024383,2]
[377923754,1754613217957,-782.04,0.00024383,2]
[377923755,1754613217968,-1213.52,0.00024383,2]
[377923756,1754613217977,-1326.52,0.00024383,2]
[377923757,1754613217987,-2043.3,0.00024383,2]
[377923758,1754613217996,-2287.32,0.00024383,2]
[377923759,1754613218006,-400.0,0.00024383,2]
[377923760,1754613218015,-1429.55,0.00024383,2]
[377923761,1754613218025,-1328.2,0.00024383,2]
[377923762,1754613218034,-1087.69,0.00024383,2]
[377923763,1754613218043,-372.23963853,0.00024383,2]
[377923764,1754613218054,-718.93,0.00024383,2]
[377923765,1754613218063,-2952.54,0.00024383,2]
[377923766,1754613218072,-1291.71,0.00024383,2]
[377923767,1754613218082,-507.81,0.00024383,2]
[377923768,1754613218091,-1573.48,0.00024383,2]
[377923769,1754613218100,-2109.97,0.00024383,2]
[377923770,1754613218110,-1129.91,0.00024383,2]
[377923771,1754613218119,-1998.91,0.00024383,2]
[377923772,1754613218129,-921.79,0.00024383,2]
[377923773,1754613218139,-2405.69,0.00024383,2]
[377923774,1754613218148,-1164.62,0.00024383,2]
[377923775,1754613218158,-620.84,0.00024383,2]
[377923776,1754613218167,-662.71,0.00024383,2]
[377923777,1754613218177,-1425.93,0.00024383,2]
[377923778,1754613218187,-1165.14,0.00024383,2]
[377923779,1754613218199,-918.26,0.00024383,2]
[377923780,1754613218209,-780.96,0.00024383,2]
[377923781,1754613218219,-2947.95,0.00024383,2]
[377923782,1754613218228,-1258.15,0.00024383,2]
[377923783,1754613218238,-876.19,0.00024383,2]
[377923784,1754613218248,-478.79,0.00024383,2]
[377923785,1754613218257,-599.75,0.00024383,2]
[377923786,1754613218267,-1217.16,0.00024383,2]
[377923787,1754613218277,-2199.42,0.00024383,2]
[377923788,1754613218287,-21934.36,0.00024383,2]
[377923789,1754613218296,-1553.23,0.00024383,2]
[377923790,1754613218306,-2212.98,0.00024383,2]
[377923791,1754613218315,-1718.94,0.00024383,2]
[377923792,1754613218325,-1128.21,0.00024383,2]
[377923793,1754613218334,-400.0,0.00024383,2]
[377923794,1754613218343,-454.14,0.00024383,2]
[377923795,1754613218353,-913.11,0.00024383,2]
[377923796,1754613218362,-484.16,0.00024383,2]
[377923797,1754613218371,-2805.22,0.00024383,2]
[377923798,1754613218381,-1717.22,0.00024383,2]
[377923799,1754613218390,-674.02,0.00024383,2]
[377923800,1754613218399,-3589.91,0.00024383,2]
[377923801,1754613218408,-445.14,0.00024383,2]
[377923802,1754613218418,-1638.11,0.00024383,2]
[377923803,1754613218427,-2525.21,0.00024383,2]
[377923804,1754613218437,-1662.56,0.00024383,2]
[377923805,1754613218447,-400.0,0.00024383,2]
[377923806,1754613218456,-1890.31,0.00024383,2]
[377923807,1754613218466,-820.59,0.00024383,2]
[377923808,1754613218475,-600.51,0.00024383,2]
[377923809,1754613218484,-1179.5,0.00024383,2]
[377923810,1754613218494,-674.63,0.00024383,2]
[377923811,1754613218503,-2338.84,0.00024383,2]
[377923812,1754613218513,-2335.94,0.00024383,2]
[377923813,1754613218522,-1234.92,0.00024383,2]
[377923814,1754613218532,-1814.44,0.00024383,2]
[377923815,1754613218542,-862.72,0.00024383,2]
[377923816,1754613218551,-1880.9,0.00024383,2]
[377923817,1754613218561,-5688.95,0.00024383,2]
[377923818,1754613218571,-1651.16,0.00024383,2]
[377923819,1754613218580,-400.0,0.00024383,2]
[377923820,1754613218591,-480.51,0.00024383,2]
[377923821,1754613218600,-4392.3065625,0.000245,2]
[377923822,1754613218610,-4392.30656232,0.000245,2]
[377923823,1754613218619,-4392.30656232,0.000245,2]
[377923824,1754613218628,-4392.30656232,0.000245,2]
[377923825,1754613218638,-4392.30656232,0.000245,2]
[377923826,1754613218648,-4392.30656232,0.000245,2]
[377923827,1754613218657,-4392.30656232,0.000245,2]
[377923828,1754613218667,-4392.30656232,0.000245,2]
[377923829,1754613218676,-4392.30656232,0.000245,2]
[377923830,1754613218685,-4392.30656232,0.000245,2]
[377923831,1754613218698,-4392.30656232,0.000245,2]
[377923832,1754613218707,-152.0,0.0002454,13]
[377923833,1754613218717,-235.72443384,0.0002454,5]
[377923834,1754613218727,-160.0,0.00024543,2]
[377923835,1754613218736,-70540.39100002,0.00024558,2]
[377923836,1754613218746,-267.11,0.00024644,2]
[377923837,1754613218756,-1770.72,0.00024644,2]
[377923838,1754613218765,-2033.74,0.00024644,2]
[377923839,1754613218775,-1928.95,0.00024644,2]
[377923840,1754613218785,-1964.46,0.00024644,2]
[377923841,1754613218794,-1517.59,0.00024644,2]
[377923842,1754613218804,-2517.35,0.00024644,2]
[377923843,1754613218813,-583.45231906,0.0002465,2]
[377923844,1754613218823,-200.0,0.00024657,2]
[377923845,1754613218833,-413.9,0.00024657,2]
[377923846,1754613218842,-491.72,0.00024657,2]
[377923847,1754613218852,-1398.87,0.00024657,2]
[377923848,1754613218863,-1031.25,0.00024657,2]
[377923849,1754613218873,-984.93,0.00024657,2]
[377923850,1754613218882,-565.33,0.00024657,2]
[377923851,1754613218894,-1073.05,0.00024657,2]
[377923852,1754613218904,-1178.77,0.00024657,2]
[377923853,1754613218913,-828.34,0.00024657,2]
[377923854,1754613218923,-812.28,0.00024657,2]
[377923855,1754613218933,-927.28,0.00024657,2]
[377923856,1754613218945,-953.96,0.00024657,2]
[377923857,1754613218954,-861.71,0.00024657,2]
[377923858,1754613218964,-802.6,0.00024657,2]
[377923859,1754613218974,-580.75,0.00024657,2]
[377923860,1754613218985,-478.16080711,0.00024657,2]
[377923861,1754613218995,-571.8,0.00024657,2]
[377923862,1754613219004,-400.0,0.00024657,2]
[377923863,1754613219014,-1017.49,0.00024657,2]
[377923864,1754613219023,-480.71,0.00024657,2]
[377923865,1754613219033,-403.89,0.00024657,2]
[377923866,1754613219043,-400.0,0.00024657,2]
[377923867,1754613219054,-1379.73,0.00024657,2]
[377923868,1754613219064,-1290.36,0.00024657,2]
[377923869,1754613219074,-560.12,0.00024657,2]
[377923870,1754613219084,-1326.45,0.00024657,2]
[377923871,1754613219094,-570.53,0.00024657,2]
[377923872,1754613219105,-1037.58,0.00024657,2]
[377923873,1754613219114,-551.88,0.00024657,2]
[377923874,1754613219124,-624.79,0.00024657,2]
[377923875,1754613219135,-459.48,0.00024657,2]
[377923876,1754613219145,-912.6,0.00024657,2]
[377923877,1754613219156,-453.86,0.00024657,2]
[377923878,1754613219166,-845.43,0.00024657,2]
[377923879,1754613219176,-610.33,0.00024657,2]
[377923880,1754613219187,-1543.29,0.00024657,2]
[377923881,1754613219198,-802.15,0.00024657,2]
[377923882,1754613219207,-405.06,0.00024657,2]
[377923883,1754613219217,-400.0,0.00024657,2]
[377923884,1754613219227,-1052.0,0.00024657,2]
[377923885,1754613219237,-425.42760261,0.00024657,2]
[377923886,1754613219246,-950.22,0.00024657,2]
[377923887,1754613219257,-903.46,0.00024657,2]
[377923888,1754613219266,-1188.56,0.00024657,2]
[377923889,1754613219276,-400.0,0.00024657,2]
[377923890,1754613219286,-1340.86,0.00024657,2]
[377923891,1754613219296,-511.85,0.00024657,2]
[377923892,1754613219306,-502.43,0.00024657,2]
[377923893,1754613219318,-538.68,0.00024657,2]
[377923894,1754613219330,-469.08,0.00024657,2]
[377923895,1754613219340,-431.81,0.00024657,2]
[377923896,1754613219352,-415.03,0.00024657,2]
[377923897,1754613219362,-400.0,0.00024657,2]
[377923898,1754613219371,-652.84,0.00024657,2]
[377923899,1754613219381,-448.34,0.00024657,2]
[377923900,1754613219390,-613.1,0.00024657,2]
[377923901,1754613219400,-400.0,0.00024657,2]
[377923902,1754613219409,-468.72,0.00024657,2]
[377923903,1754613219419,-1054.59,0.00024657,2]
[377923904,1754613219429,-606.31,0.00024657,2]
[377923905,1754613219450,-560.03,0.00024657,2]
[377923906,1754613219460,-1129.63,0.00024657,2]
[377923907,1754613219469,-744.37,0.00024657,2]
[377923908,1754613219479,-771.07,0.00024657,2]
[377923909,1754613219489,-1372.41,0.00024657,2]
[377923910,1754613219498,-830.78,0.00024657,2]
[377923911,1754613219507,-463.32,0.00024657,2]
[377923912,1754613219517,-1290.29,0.00024657,2]
[377923913,1754613219527,-643.55,0.00024657,2]